bitfinex-derivatives/quotes_ETHF0:USTF0_20240910
["timestamp","ask_amount","ask_price","bid_price","bid_amount"]
[1725987261791,0.7972,2343.5,2343.3,3.76672]
[1725987261992,0.4267,2343.4,2343.3,3.34]
[1725987262185,0.4267,2343.5,2343.3,3.76672]
[1725987262387,0.43366419,2343.6,2343.4,0.4267]
[1725987262697,0.43366419,2343.6,2343.5,3.34]
[1725987266298,1.50034419,2343.6,2343.5,3.34]
[1725987266496,0.4267,2343.4,2343.3,3.34]
[1725987268597,1.49347,2343.4,2343.3,3.34]
[1725987268797,5.76067,2343.4,2343.3,3.34]
[1725987270002,1.49347,2343.4,2343.3,3.34]
[1725987270393,2.56056,2343.1,2343.0,0.1]
[1725987270599,0.42681,2342.8,2342.7,0.1]
[1725987270795,0.42683,2342.7,2342.6,5.02305]
[1725987271002,0.42683,2342.7,2342.6,4.5962]
[1725987271501,0.42683,2342.7,2342.6,4.195]
[1725987272403,0.42683,2342.7,2342.5,24.74]
[1725987272404,0.42685,2342.6,2342.5,24.74]
[1725987272791,0.42685,2342.6,2342.5,3.34]
[1725987272990,0.42685,2342.6,2342.5,3.76687]
[1725987274502,0.42685,2342.6,2342.5,3.34]
[1725987275503,0.4269,2342.3,2342.2,0.1]
[1725987275706,0.4269,2342.4,2342.2,3.34]
[1725987275902,0.42689,2342.4,2342.2,3.34]
[1725987276097,0.80549,2342.4,2342.2,3.34]
[1725987276298,0.4269,2342.3,2342.2,3.34]
[1725987277808,0.8168,2342.3,2342.2,3.34]
[1725987280110,0.42694,2342.1,2342.0,24.74]
[1725987280408,0.42694,2342.1,2342.0,25.16696]
[1725987280805,0.42694,2342.1,2342.0,24.74]
[1725987281110,0.42694,2342.1,2342.0,25.16696]
[1725987281903,0.42694,2342.1,2342.0,24.74]
[1725987282408,0.42694,2342.1,2342.0,3.34]
[1725987283904,1.4572,2342.3,2342.0,3.76696]
[1725987283905,0.42693,2342.2,2342.0,3.76696]
[1725987284099,0.42693,2342.2,2342.0,3.76695]
[1725987284307,0.42694,2342.1,2342.0,3.34]
[1725987286014,0.42694,2342.1,2341.9,21.4]
[1725987286015,0.42696,2342.0,2341.9,21.4]
[1725987286207,0.80616,2342.0,2341.9,21.4]
[1725987286407,0.42698,2341.9,2341.8,3.76699]
[1725987286612,0.42698,2341.9,2341.8,3.34]
[1725987286810,0.42698,2341.9,2341.8,3.767]
[1725987287016,0.80617,2342.0,2341.9,0.42698]
[1725987287414,0.42695,2342.1,2342.0,0.42695]
[1725987287608,0.42695,2342.1,2342.0,3.76695]
[1725987287809,0.3899,2342.3,2342.0,3.34]
[1725987288013,0.42691,2342.3,2342.2,3.76692]
[1725987288316,1.06704,2342.8,2342.4,0.42688]
[1725987288618,0.42687,2342.6,2342.5,3.34]
[1725987288918,0.42687,2342.6,2342.5,24.74]
[1725987289510,0.42687,2342.6,2342.5,25.16687]
[1725987289706,0.42687,2342.6,2342.5,21.4]
[1725987290013,0.3941,2342.7,2342.5,21.4]
[1725987290209,0.3941,2342.7,2342.5,25.16686]
[1725987290210,0.82094,2342.7,2342.5,25.16686]
[1725987290410,0.82094,2342.7,2342.5,24.74]
[1725987290607,0.42685,2342.6,2342.5,24.74]
[1725987290811,0.42685,2342.6,2342.5,25.16687]
[1725987291015,0.42685,2342.6,2342.5,21.4]
[1725987292014,0.82094,2342.7,2342.6,0.42685]
[1725987292521,0.42685,2342.6,2342.5,21.82686]
[1725987292816,0.82095,2342.7,2342.5,21.82686]
[1725987293023,0.42685,2342.6,2342.5,21.82686]
[1725987293323,0.42685,2342.6,2342.5,21.4]
[1725987293925,1.06713,2342.6,2342.2,3.34]
[1725987294110,0.4269,2342.4,2342.2,3.76691]
[1725987294313,0.4269,2342.4,2342.3,0.4269]
[1725987294615,0.4269,2342.4,2342.3,21.8269]
[1725987295321,0.42688,2342.5,2342.3,21.8269]
[1725987295709,0.42689,2342.4,2342.3,21.8269]
[1725987298225,0.42688,2342.5,2342.4,0.42688]
[1725987298430,0.42689,2342.4,2342.3,21.82689]
[1725987300427,0.42688,2342.5,2342.3,21.4]
[1725987300732,2.74308886,2342.6,2342.3,21.4]
[1725987300733,0.42689,2342.4,2342.3,21.8269]
[1725987301315,2.74308886,2342.6,2342.2,3.76692]
[1725987301316,0.4269,2342.3,2342.2,3.76692]
[1725987301625,1.1934,2342.3,2342.2,3.76692]
[1725987302525,0.42692,2342.2,2342.1,21.4]
[1725987302824,0.3893,2342.2,2342.0,3.34]
[1725987303028,0.42697,2342.0,2341.9,0.42696]
[1725987303224,0.42698,2342.0,2341.9,0.42697]
[1725987303931,0.42698,2341.9,2341.8,25.16698]
[1725987304830,0.42697,2342.0,2341.9,0.42697]
[1725987305125,0.3893,2342.2,2341.9,3.34]
[1725987305327,0.7665,2342.3,2342.1,3.34]
[1725987305530,0.82392,2342.3,2342.2,0.42692]
[1725987305726,0.397,2342.3,2342.2,1.20992]
[1725987305933,1.20138,2342.5,2342.2,0.783]
[1725987306230,1.20138,2342.5,2342.4,0.42689]
[1725987306436,0.42689,2342.4,2342.3,3.76689]
[1725987306824,1.20138,2342.5,2342.4,0.42689]
[1725987307121,0.80927,2342.6,2342.4,0.42687]
[1725987307321,0.42684,2342.7,2342.6,0.42685]
[1725987308031,0.4044,2342.8,2342.7,0.42683]
[1725987308231,0.83122,2342.8,2342.6,0.42684]
[1725987308430,0.83122,2342.8,2342.7,0.42683]
[1725987308732,0.42684,2342.7,2342.5,3.76686]
[1725987309137,0.4044,2342.8,2342.5,3.34]
[1725987309335,0.42684,2342.7,2342.5,3.76685]
[1725987309525,0.83122,2342.8,2342.6,0.42684]
[1725987310028,0.4044,2342.8,2342.7,0.42683]
[1725987310625,0.83121,2342.8,2342.6,0.42684]
[1725987311629,0.4044,2342.8,2342.7,0.42683]
[1725987311928,0.83123,2342.8,2342.6,0.42684]
[1725987312326,0.80921,2342.9,2342.5,3.34]
[1725987312527,0.3824,2342.9,2342.5,3.34]
[1725987312836,0.3824,2342.9,2342.8,0.42681]
[1725987313339,0.8092,2342.9,2342.8,0.42681]
[1725987313532,0.3824,2342.9,2342.8,0.42681]
[1725987314238,0.8092,2342.9,2342.8,0.42681]
[1725987314439,0.3824,2342.9,2342.8,0.42681]
[1725987314945,1.67594886,2343.1,2342.7,3.34]
[1725987315138,1.67594886,2343.1,2343.0,0.42678]
[1725987315438,1.67594886,2343.1,2342.8,0.4268]
[1725987315741,0.42679,2343.0,2342.8,0.4268]
[1725987316239,0.42679,2343.0,2342.9,0.4268]
[1725987316542,0.42679,2343.0,2342.8,0.4268]
[1725987316837,0.42678,2343.0,2342.8,0.4268]
[1725987317036,2.74288886,2343.1,2342.7,3.76682]
[1725987317338,0.3767,2342.9,2342.6,0.42684]
[1725987317534,0.3917,2342.8,2342.6,0.42684]
[1725987317834,0.3917,2342.8,2342.3,0.1]
[1725987317835,1.06711,2342.7,2342.3,0.5269]
[1725987318039,0.4269,2342.3,2342.2,3.34]
[1725987318232,1.06711,2342.7,2342.0,3.34]
[1725987318432,1.06711,2342.7,2342.1,0.42693]
[1725987318433,0.3922,2342.2,2342.1,0.42693]
[1725987319433,0.4269,2342.4,2342.2,0.42692]
[1725987319636,0.4269,2342.4,2342.2,3.76692]
[1725987320035,0.4269,2342.3,2342.2,3.34]
[1725987321044,0.4269,2342.3,2342.0,3.76695]
[1725987321343,0.42694,2342.2,2342.0,3.34]
[1725987321542,0.3795,2342.1,2341.8,26.27151624]
[1725987321735,1.19765,2342.1,2341.8,26.27151624]
[1725987321937,0.7707,2342.1,2342.0,3.76696]
[1725987322241,2.07674825,2342.4,2342.0,3.76696]
[1725987322449,0.42694,2342.1,2342.0,3.34]
[1725987323643,0.42693,2342.2,2342.0,3.34]
[1725987323844,2.84744825,2342.4,2342.1,0.42693]
[1725987323845,0.4269,2342.3,2342.1,0.42693]
[1725987324650,1.67704825,2342.4,2342.3,0.4269]
[1725987324840,1.67704825,2342.4,2342.2,3.34]
[1725987324841,2.66293434,2342.5,2342.2,3.76691]
[1725987325044,2.1039362,2342.4,2342.3,0.3852]
[1725987325249,2.10397047,2342.4,2342.3,0.3852]
[1725987326349,2.10397047,2342.4,2342.2,0.42691]
[1725987327451,2.41468047,2342.3,2342.2,0.42691]
[1725987328251,2.84158047,2342.3,2342.2,0.42691]
[1725987328447,2.41468047,2342.3,2342.1,3.34]
[1725987328655,2.41468047,2342.3,2342.2,0.42692]
[1725987328656,2.04688047,2342.3,2342.2,0.42692]
[1725987328944,0.3698,2342.3,2342.2,0.42692]
[1725987329140,2.04688047,2342.3,2342.2,0.42692]
[1725987330249,2.47378047,2342.3,2342.1,3.76692]
[1725987330546,2.47378047,2342.3,2342.0,0.3852]
[1725987330547,2.10401047,2342.2,2342.0,0.81215]
[1725987330852,0.79853,2342.2,2342.0,0.81215]
[1725987331346,0.79853,2342.2,2342.1,0.42694]
[1725987331651,0.79853,2342.2,2342.0,0.81215]
[1725987331850,0.42694,2342.1,2342.0,0.81215]
[1725987332041,0.42694,2342.1,2342.0,0.42695]
[1725987332555,2.47561047,2342.2,2342.1,0.42694]
[1725987332748,1.67708047,2342.2,2341.8,21.7706]
[1725987333048,2.10401047,2342.2,2342.1,3.76694]
[1725987333250,2.10401047,2342.2,2342.1,3.34]
[1725987333655,2.10401047,2342.2,2342.1,3.76694]
[1725987334546,1.67708047,2342.2,2342.1,3.76694]
[1725987334739,0.42692,2342.2,2342.1,4.43384683]
[1725987335248,0.42692,2342.2,2342.1,4.00690683]
[1725987335442,0.42696,2342.0,2341.9,3.76697]
[1725987335638,0.42696,2342.0,2341.9,4.43433439]
[1725987335842,0.42696,2342.0,2341.9,4.00736439]
[1725987336044,1.21766,2342.0,2341.9,4.00736439]
[1725987336646,1.21766,2342.0,2341.9,0.66736439]
[1725987336851,0.42698,2341.9,2341.8,21.827]
[1725987337056,2.48240011,2341.9,2341.8,21.827]
[1725987337551,0.80418,2341.9,2341.8,21.827]
[1725987337855,2.48240011,2341.9,2341.8,21.827]
[1725987338245,0.80418,2341.9,2341.8,21.827]
[1725987339050,0.42703,2341.6,2341.5,1.10453624]
[1725987339261,0.42703,2341.6,2341.5,0.66755695]
[1725987339452,0.42703,2341.6,2341.4,0.42706]
[1725987339751,0.42703,2341.6,2341.1,0.42712]
[1725987339752,0.42711,2341.2,2341.1,0.42712]
[1725987339954,0.42712,2341.2,2341.1,0.66766522]
[1725987340250,1.06772,2341.3,2341.0,0.42713]
[1725987340251,0.42712,2341.1,2341.0,0.42714]
[1725987340646,0.42712,2341.2,2341.0,0.42714]
[1725987340859,1.49494,2341.1,2341.0,21.4]
[1725987341056,1.67811992,2341.1,2340.6,3.8442]
[1725987341355,0.42713,2341.1,2340.7,3.34]
[1725987341552,0.42713,2341.1,2340.9,0.42715]
[1725987342145,0.42713,2341.1,2340.8,21.4]
[1725987342146,0.42715,2341.0,2340.8,21.4]
[1725987342343,0.42715,2341.0,2340.9,0.42716]
[1725987342552,0.42713,2341.1,2340.9,0.42716]
[1725987342757,3.14266992,2341.3,2340.8,21.4]
[1725987343056,0.42711,2341.2,2341.0,0.42713]
[1725987343245,2.07491992,2341.3,2341.0,0.42713]
[1725987343246,0.42712,2341.1,2341.0,0.42713]
[1725987344043,0.42712,2341.1,2340.9,0.42715]
[1725987344249,0.42715,2341.0,2340.8,21.82717]
[1725987345151,1.06777,2341.2,2340.8,21.82717]
[1725987345357,0.42715,2341.0,2340.8,21.82717]
[1725987346148,0.42715,2341.0,2340.9,0.42716]
[1725987346457,0.42715,2341.0,2340.8,21.4]
[1725987346458,0.42713,2341.1,2341.0,0.42714]
[1725987346650,0.42712,2341.1,2341.0,0.42714]
[1725987346851,0.42712,2341.2,2341.1,0.42712]
[1725987347046,0.42712,2341.1,2340.8,21.4]
[1725987347453,0.8239,2341.3,2341.2,0.42711]
[1725987347760,0.8239,2341.3,2341.1,0.42711]
[1725987347954,0.42711,2341.2,2341.1,0.42711]
[1725987348554,0.42711,2341.2,2341.0,0.42713]
[1725987348945,1.46457,2341.3,2340.8,21.4]
[1725987349253,0.42716,2341.0,2340.8,21.82716]
[1725987349458,0.42716,2340.9,2340.8,21.82716]
[1725987349764,0.7675,2341.5,2340.8,29.012]
[1725987350059,0.893,2341.8,2341.4,3.34]
[1725987350256,0.366,2341.8,2341.5,0.42704]
[1725987350644,0.42702,2341.7,2341.4,0.42706]
[1725987351852,0.79301,2341.8,2341.4,0.42706]
[1725987352945,0.366,2341.8,2341.5,0.42705]
[1725987353145,0.366,2341.8,2341.5,3.76704]
[1725987353353,0.366,2341.8,2341.5,3.34]
[1725987353559,0.366,2341.8,2341.6,0.42703]
[1725987353761,0.366,2341.8,2341.5,3.76704]
[1725987355764,0.793,2341.8,2341.5,3.76704]
[1725987356564,0.366,2341.8,2341.5,3.76704]
[1725987356756,0.366,2341.8,2341.6,0.42703]
[1725987357157,0.793,2341.8,2341.5,3.76704]
[1725987358170,0.42703,2341.7,2341.4,0.42706]
[1725987358363,0.42707,2341.4,2341.2,0.64584746]
[1725987358674,0.3756,2341.3,2340.8,21.5]
[1725987358861,2.22494,2341.3,2340.8,21.82717]
[1725987359169,3.34,2341.2,2340.6,0.1]
[1725987359362,0.42715,2341.0,2340.7,0.42719]
[1725987360468,0.42716,2340.9,2340.7,0.42719]
[1725987360765,0.42716,2340.9,2340.6,21.4]
[1725987360967,0.42719,2340.8,2340.6,21.4]
[1725987361163,0.4272,2340.7,2340.4,0.42724]
[1725987361365,0.4272,2340.7,2340.5,0.42723]
[1725987361366,1.1487,2340.7,2340.5,0.42723]
[1725987361562,1.1487,2340.7,2340.4,0.42724]
[1725987361761,1.1487,2340.7,2340.5,21.4]
[1725987362062,0.77,2340.7,2340.5,21.4]
[1725987362260,3.34,2341.0,2340.5,21.4]
[1725987362261,0.3787,2341.0,2340.6,0.4272]
[1725987362867,0.42717,2340.9,2340.6,0.4272]
[1725987363872,0.42716,2340.9,2340.6,0.4272]
[1725987364166,0.42713,2341.1,2340.7,3.34]
[1725987364374,0.42713,2341.1,2340.8,0.42717]
[1725987365870,0.42713,2341.1,2340.9,0.42716]
[1725987366070,0.42713,2341.1,2340.8,0.42717]
[1725987367477,0.42713,2341.1,2340.9,0.42716]
[1725987367871,1.60412,2341.2,2340.9,0.42716]
[1725987368170,0.42713,2341.1,2340.9,0.42716]
[1725987368572,0.42713,2341.1,2340.8,0.42717]
[1725987368766,0.42713,2341.1,2340.9,0.42716]
[1725987369473,0.42713,2341.1,2340.7,3.34]
[1725987369776,0.42713,2341.1,2340.9,0.42716]
[1725987371863,0.796,2341.2,2341.1,0.42712]
[1725987372068,0.796,2341.2,2341.0,0.4037]
[1725987372269,0.796,2341.2,2341.0,0.83082]
[1725987373472,5.0672,2341.2,2340.5,26.57608]
[1725987373682,0.42713,2341.1,2340.8,0.42717]
[1725987373868,0.3799,2341.0,2340.8,0.42717]
[1725987375166,0.80704,2341.0,2340.8,0.42717]
[1725987375372,0.80704,2341.0,2340.7,0.42718]
[1725987375679,0.42717,2340.9,2340.6,0.4272]
[1725987375879,0.42718,2340.8,2340.5,21.4]
[1725987376178,0.42721,2340.6,2340.5,21.4]
[1725987376475,0.42721,2340.6,2340.2,0.42728]
[1725987376476,3.76722,2340.6,2340.2,0.42728]
[1725987376671,0.81735,2340.5,2340.0,4.195]
[1725987376872,0.3901,2340.5,2340.1,21.82731]
[1725987377171,0.3837,2340.4,2340.1,21.82731]
[1725987377677,0.3837,2340.4,2339.9,0.98493501]
[1725987377879,0.42727,2340.3,2339.9,1.03336501]
[1725987378072,0.3798,2340.2,2339.9,22.00603501]
[1725987378268,0.8071,2340.2,2339.9,21.7944]
[1725987378465,3.7198,2340.2,2339.9,21.4]
[1725987378670,0.42731,2340.1,2339.9,21.4]
[1725987378972,0.42732,2340.1,2339.7,0.64358806]
[1725987379276,3.7198,2340.2,2339.7,0.64358806]
[1725987379480,3.7198,2340.2,2339.7,0.21621806]
[1725987379778,0.42733,2340.0,2339.7,0.21621806]
[1725987380174,3.7198,2340.2,2339.8,0.42736]
[1725987380482,0.42731,2340.1,2339.7,0.64358806]
[1725987381370,0.42731,2340.1,2339.7,0.21621806]
[1725987381567,0.42731,2340.1,2339.7,0.64358806]
[1725987382467,0.42731,2340.1,2339.8,0.42736]
[1725987383576,0.3798,2340.2,2339.7,0.21621806]
[1725987383781,0.3798,2340.2,2340.0,0.42732]
[1725987384679,0.80709,2340.2,2340.0,0.42732]
[1725987384975,0.80709,2340.2,2339.9,0.42733]
[1725987385679,0.80709,2340.2,2340.0,0.42732]
[1725987386184,0.3798,2340.2,2340.0,0.42731]
[1725987388486,0.80709,2340.2,2340.0,0.42731]
[1725987389182,0.3798,2340.2,2339.6,24.74]
[1725987389383,0.42735,2339.9,2339.6,21.4]
[1725987389573,0.42734,2340.0,2339.8,0.42735]
[1725987389779,0.369,2340.0,2339.6,21.4]
[1725987389992,0.369,2340.0,2339.9,0.42734]
[1725987390286,0.42732,2340.1,2339.9,0.42734]
[1725987390789,0.8071,2340.2,2339.7,1.06844]
[1725987390983,0.8071,2340.2,2340.0,0.42731]
[1725987391686,0.8071,2340.2,2339.7,1.45814]
[1725987391687,0.3798,2340.2,2340.1,0.42731]
[1725987391995,0.80709,2340.2,2340.0,0.42731]
[1725987392484,0.3798,2340.2,2340.1,0.42731]
[1725987393273,0.80709,2340.2,2340.1,0.42731]
[1725987393483,0.3798,2340.2,2340.1,0.42731]
[1725987395378,0.3837,2340.4,2340.0,0.3695]
[1725987395576,0.3863,2340.3,2340.2,0.42728]
[1725987396277,0.81357,2340.3,2340.1,0.42729]
[1725987396478,0.3863,2340.3,2340.2,0.42729]
[1725987397092,0.81357,2340.3,2340.1,0.4273]
[1725987397577,0.3863,2340.3,2340.2,0.42729]
[1725987398488,0.81357,2340.3,2340.2,0.42729]
[1725987398691,0.3863,2340.3,2340.2,0.42729]
[1725987398885,0.81358,2340.3,2340.1,0.4273]
[1725987399085,1.45449,2340.3,2339.9,0.42734]
[1725987399389,0.42731,2340.1,2339.9,0.42734]
[1725987400186,0.42729,2340.2,2339.8,0.3711]
[1725987400389,0.3863,2340.3,2340.0,0.42731]
[1725987400692,0.42729,2340.2,2340.0,0.42731]
[1725987401787,0.42729,2340.2,2339.8,0.3711]
[1725987401788,0.42732,2340.1,2339.8,0.3711]
[1725987401976,0.42732,2340.1,2339.9,0.42733]
[1725987402177,0.4048,2340.0,2339.9,0.42733]
[1725987403498,0.42736,2339.8,2339.7,0.42737]
[1725987403698,0.80706,2339.9,2339.7,0.42737]
[1725987403994,0.3684,2339.8,2339.7,0.42738]
[1725987404183,0.3684,2339.8,2339.4,0.60654353]
[1725987404381,0.42741,2339.6,2339.4,0.81572]
[1725987404692,0.42741,2339.6,2339.5,21.4]
[1725987404889,0.42739,2339.7,2339.5,21.82741]
[1725987405084,0.79577,2339.8,2339.6,0.42738]
[1725987405287,0.42738,2339.7,2339.6,0.42738]
[1725987405588,0.80705,2339.9,2339.7,0.42738]
[1725987405786,0.80705,2339.9,2339.7,0.42737]
[1725987406386,0.80705,2339.9,2339.6,0.7761]
[1725987406587,0.80705,2339.9,2339.7,0.42737]
[1725987406995,1.6725624,2340.2,2340.0,0.42731]
[1725987407183,0.42731,2340.1,2339.8,3.34]
[1725987407496,0.4273,2340.2,2340.0,0.42731]
[1725987407685,0.42731,2340.1,2340.0,0.42731]
[1725987407994,0.42729,2340.2,2340.0,0.42731]
[1725987409182,0.42729,2340.2,2340.1,0.42731]
[1725987409687,1.18478,2340.3,2340.1,0.42731]
[1725987409886,0.42729,2340.2,2340.1,0.4273]
[1725987410087,0.7575,2340.3,2339.7,1.06844]
[1725987410285,0.42729,2340.2,2340.0,0.42731]
[1725987411184,0.42729,2340.2,2339.7,1.06844]
[1725987411894,0.42729,2340.2,2340.1,0.42731]
[1725987412094,0.42729,2340.2,2339.7,1.06844]
[1725987412392,0.42729,2340.2,2340.0,0.42731]
[1725987412588,0.42729,2340.2,2340.1,0.42731]
[1725987414196,0.42731,2340.1,2340.0,0.42732]
[1725987415095,4.2736,2340.1,2339.6,2.31269]
[1725987415298,3.7273,2340.0,2339.7,0.42738]
[1725987415606,0.42736,2339.8,2339.7,0.42738]
[1725987416894,1.20284,2339.9,2339.8,0.42736]
[1725987418189,0.7755,2339.9,2339.8,0.42736]
[1725987418509,0.42732,2340.1,2340.0,0.42732]
[1725987419313,2.0998824,2340.1,2340.0,0.42732]
[1725987419495,0.42733,2340.0,2339.9,0.42733]
[1725987419690,0.42734,2339.9,2339.8,0.42734]
[1725987419891,2.0998924,2340.0,2339.9,0.42734]
[1725987420402,1.06828,2340.1,2340.0,0.42732]
[1725987420403,0.42731,2340.1,2340.0,0.42732]
[1725987420700,2.23008321,2340.1,2339.7,0.7708]
[1725987421006,1.67902423,2340.0,2339.8,0.66470995]
[1725987421198,1.67902423,2340.0,2339.9,0.42734]
[1725987421398,0.42732,2340.0,2339.9,1.09198004]
[1725987421593,2.65740321,2340.0,2339.9,1.09198004]
[1725987423495,2.65740321,2340.0,2339.9,0.66464004]
[1725987423810,3.21492401,2340.0,2339.9,0.66464004]
[1725987423998,4.28324401,2340.0,2339.9,0.66464004]
[1725987424192,4.28324401,2340.0,2339.5,22.89733363]
[1725987424193,3.85592401,2340.0,2339.5,22.89733363]
[1725987424395,1.68103175,2339.7,2339.6,2.65435238]
[1725987424908,0.7736,2339.7,2339.6,2.65435238]
[1725987426703,0.7736,2339.7,2339.6,2.15513154]
[1725987427013,0.7736,2339.7,2339.6,2.65348348]
[1725987427303,2.88201175,2339.7,2339.6,2.65348348]
[1725987427506,2.88201175,2339.7,2339.6,2.22608348]
[1725987427698,2.88201175,2339.7,2339.6,2.65348348]
[1725987427699,2.45463175,2339.7,2339.6,2.65348348]
[1725987427898,2.88201175,2339.7,2339.6,2.65348348]
[1725987428098,2.45463175,2339.7,2339.6,2.65348348]
[1725987428305,1.68103175,2339.7,2339.6,2.65348348]
[1725987428504,1.68103175,2339.8,2339.7,0.42738]
[1725987428702,1.68103175,2339.8,2339.7,2.65346348]
[1725987428903,1.68103175,2339.8,2339.7,0.42738]
[1725987429208,1.68103175,2339.8,2339.7,1.59082585]
[1725987429402,2.66871567,2339.9,2339.8,0.42736]
[1725987429704,2.24137567,2339.9,2339.8,1.09173522]
[1725987430500,2.24137567,2339.9,2339.8,1.09189663]
[1725987430910,3.93610401,2340.1,2339.8,0.66453663]
[1725987431096,2.24091265,2340.0,2339.9,1.09187663]
[1725987431411,1.68044145,2340.0,2339.9,2.65402208]
[1725987431810,1.68044145,2340.0,2339.9,3.03732208]
[1725987432002,1.68044145,2340.1,2340.0,0.42732]
[1725987432203,1.68044145,2340.1,2340.0,3.05740208]
[1725987432402,2.24091265,2340.2,2340.1,0.42731]
[1725987432600,2.24091265,2340.2,2340.1,1.09184663]
[1725987434409,2.62391265,2340.2,2340.1,1.09184663]
[1725987435405,2.62391265,2340.2,2340.1,0.66453663]
[1725987435616,2.62391265,2340.2,2340.1,1.09184663]
[1725987435917,6.38097297,2340.2,2340.1,0.66425979]
[1725987436119,6.38097297,2340.2,2339.9,0.42733]
[1725987436120,0.42731,2340.1,2339.9,0.42733]
[1725987436308,2.07496852,2340.0,2339.9,0.42733]
[1725987436506,2.44336852,2340.0,2339.9,2.65295585]
[1725987437007,2.44336852,2340.0,2339.9,0.42733]
[1725987437207,2.44335181,2340.0,2339.9,1.09139472]
[1725987437411,2.44335181,2340.0,2339.9,1.59028373]
[1725987437619,2.44335181,2340.0,2339.9,2.65256303]
[1725987437913,2.44335181,2340.0,2339.9,1.59013045]
[1725987438118,2.44335181,2340.0,2339.9,2.65241269]
[1725987439107,2.44335181,2340.0,2339.9,1.59013045]
[1725987439315,2.04895181,2340.0,2339.9,2.6524218]
[1725987439515,1.68055181,2340.0,2339.9,2.6524218]
[1725987439814,3.05104803,2340.2,2339.9,2.6271918]
[1725987439815,2.62375803,2340.2,2339.9,2.6271918]
[1725987440013,0.383,2340.2,2340.1,0.42731]
[1725987440212,2.62372485,2340.2,2340.1,1.09122144]
[1725987440407,2.24072485,2340.2,2340.1,5.86345583]
[1725987440611,2.24072485,2340.3,2340.2,0.42729]
[1725987440822,2.24072485,2340.4,2340.3,0.42727]
[1725987441022,2.24072485,2340.4,2340.3,1.09118144]
[1725987441820,2.24072485,2340.4,2340.3,0.42727]
[1725987442331,2.24072485,2340.5,2340.4,1.49539]
[1725987442521,1.67953826,2340.6,2340.5,1.49532]
[1725987442719,1.67953826,2340.8,2340.7,0.4272]
[1725987442918,1.67953826,2340.8,2340.7,24.05053719]
[1725987443126,1.67953826,2340.8,2340.7,22.49083765]
[1725987443322,2.06403826,2340.9,2340.8,0.42718]
[1725987443628,3.05238485,2340.9,2340.7,0.42718]
[1725987443823,3.05238485,2340.9,2340.8,21.82718]
[1725987443824,0.3845,2340.9,2340.8,21.82718]
[1725987444528,2.06224941,2340.9,2340.8,21.82718]
[1725987445123,2.04664941,2341.1,2341.0,0.42714]
[1725987446325,2.04664941,2341.1,2340.9,0.42715]
[1725987446326,0.3689,2341.1,2340.9,0.42715]
[1725987446525,0.3689,2341.1,2341.0,0.42714]
[1725987448528,1.67774941,2341.4,2341.0,4.2712]
[1725987448726,5.81280941,2341.5,2341.1,0.7546]
[1725987449031,5.81280941,2341.5,2341.2,0.4271]
[1725987449328,3.7571,2341.3,2341.0,0.42713]
[1725987449533,0.3828,2341.2,2341.1,0.42712]
[1725987454538,0.7511,2341.2,2341.1,0.42712]
[1725987455932,0.3828,2341.2,2341.1,0.42712]
[1725987456623,0.80359,2341.4,2340.8,22.46794]
[1725987456624,0.3765,2341.4,2341.0,1.06785]
[1725987456820,0.3765,2341.4,2341.3,0.42709]
[1725987458633,0.80357,2341.4,2341.2,0.42709]
[1725987459127,0.3765,2341.4,2341.2,0.42709]
[1725987459429,0.3765,2341.4,2341.3,0.42709]
[1725987463238,0.3765,2341.4,2341.1,0.7859]
[1725987463934,0.3765,2341.4,2341.3,0.42709]
[1725987465242,0.42709,2341.3,2341.1,0.42711]
[1725987465532,1.96712,2341.2,2341.0,0.42714]
[1725987465736,0.3763,2341.1,2341.0,0.42714]
[1725987465932,0.7625,2341.1,2341.0,0.42714]
[1725987467732,2.34358,2341.4,2341.2,0.42711]
[1725987467933,0.3862,2341.3,2341.2,0.42711]
[1725987468630,0.81329,2341.3,2341.1,0.42711]
[1725987469134,0.3862,2341.3,2341.2,0.42711]
[1725987470337,0.3862,2341.3,2340.9,0.42715]
[1725987470338,7.9874,2341.3,2340.9,0.42715]
[1725987470542,0.42713,2341.1,2340.9,0.42715]
[1725987470841,0.42711,2341.2,2341.0,0.42713]
[1725987471030,0.42711,2341.2,2340.7,21.7681]
[1725987471031,0.77,2341.2,2340.7,21.7681]
[1725987471344,1.19711,2341.2,2341.0,0.42713]
[1725987471531,0.77,2341.2,2341.1,0.42712]
[1725987471839,0.77,2341.2,2340.7,21.7681]
[1725987471840,1.19711,2341.2,2341.0,0.42713]
[1725987473134,0.42712,2341.1,2341.0,0.42713]
[1725987473340,0.77,2341.2,2340.7,21.7681]
[1725987473536,0.77,2341.2,2341.0,0.42714]
[1725987474234,1.19711,2341.2,2341.0,0.42714]
[1725987474432,0.42712,2341.1,2341.0,0.42714]
[1725987474630,1.19712,2341.2,2341.0,0.42714]
[1725987475035,1.19712,2341.2,2341.1,0.42712]
[1725987475335,1.19712,2341.2,2340.7,22.83608]
[1725987475735,1.19712,2341.2,2341.0,0.42713]
[1725987476136,0.42712,2341.1,2341.0,0.42713]
[1725987476337,0.77,2341.2,2341.1,0.42712]
[1725987476338,1.19711,2341.2,2341.1,0.42712]
[1725987476534,1.19711,2341.2,2341.0,0.42713]
[1725987477240,1.19711,2341.2,2340.7,22.83608]
[1725987477241,5.33902,2341.1,2340.8,0.42717]
[1725987477447,1.06782,2341.1,2340.8,0.42717]
[1725987477635,0.42716,2340.9,2340.8,0.42717]
[1725987477835,5.77774941,2341.2,2340.7,21.4]